Workbook

Sheet Convex Lens Lab
AS2: all cm | AT2: min | AU2: max | AV2: request | AW2: actual | BD2: prox 1 | BG2: prox 2
B3: Choose Lens 1 | AP3: sliders | AR3: range | AS3: Lmax | AT3: 0 | AU3: 120 | AW3: checked | AX3: screen | AZ3: do1 | BA3: =AW6-AW5 -> 1043.64 | BB3: do2 | BC3: =AW9-BA5 -> 2.430295506 | BD3: =ABS(BA5-AW7) -> 10.43029551 | BG3: =ABS(BC5-AW7) -> 10.33599073
AP4: 38 | AQ4: (0 to 100) | AR4: 100 | AS4: f1 | AT4: 15 | AU4: 19 | AV4: =AT4+(AU4-AT4)*AP4/AR4 -> 16.52 | AX4: x | AY4: y | AZ4: di1 | BA4: =1/(1/AV4-1/BA3) -> 16.78570449 | BB4: di2 | BC4: =1/(1/AV8-1/BC3) -> -2.335990726 | BD4: prox zone | BF4: offset 1 | BH4: offset 2 | BI4: net offset
B5: Choose Lens 2 | AP5: 0 | AQ5: (0 to 250) | AR5: 250 | AS5: xobj | AT5: 3 | AU5: =AU3-$AT$5 -> 117 | AV5: 3 | AW5: =IF(AT10,AU10,IF(AV5>AV6-AT5,AV6-AT5,AV5)) -> -999 | AX5: =AW7 -> 71.856 | AY5: 0 | AZ5: xi1 | BA5: =AW6+BA4 -> 61.42570449 | BB5: xi2 | BC5: =AW9+BC4 -> 61.52000927 | BD5: 0.8 | BE5: =IF(BD$3<=BD5,1,0) -> 0 | BF5: =BE5 -> 0 | BG5: =IF(BG$3<=BD5,1,0) -> 0 | BH5: =BG5 -> 0 | BI5: =IF(AP$10,BH5,BF5) -> 0 | BK5: these plots are turned on/off by proximity zone (AT5-AT8)
AP6: 92 | AQ6: (0 to 250) | AR6: 250 | AS6: xL1 | AT6: =2*AT5 -> 6 | AU6: =AU5-2*AT5 -> 111 | AV6: 44.64 | AW6: =MAX(MIN(AV6,AU6),AT6) -> 44.64 | AX6: =AX5 -> 71.856 | AY6: =1 -> 1 | AZ6: ho1 | BA6: 6 | BB6: ho2 | BC6: =BA8 -> -0.0965028429 | BD6: 2 | BE6: =IF(AND(SUM(BE5:BE5)=0,BD$3<=BD6),1,0) -> 0 | BF6: =BE6 -> 0 | BG6: =IF(AND(SUM(BG5)=0,BG$3<=BD6),1,0) -> 0 | BH6: =BG6 -> 0 | BI6: =IF(AP$10,BH6,BF6) -> 0 | BK6: they depend on screen position AL7
B7: Position Object | AP7: 151 | AQ7: (0 to 250) | AR7: 250 | AS7: xscreen | AT7: 3 | AU7: =AU5 -> 117 | AV7: 71.856 | AW7: =IF(AV7<AV6+AT5,AV6+AT5,AV7) -> 71.856 | AZ7: m1 | BA7: =BA4/BA3 -> 0.01608380715 | BB7: m2 | BC7: =-BC4/BC3 -> 0.9611961673 | BD7: 5 | BE7: =IF(AND(SUM(BE5:BE6)=0,BD$3<=BD7),1,0) -> 0 | BF7: 0 | BG7: =IF(AND(SUM(BG5:BG6)=0,BG$3<=BD7),1,0) -> 0 | BH7: 0 | BI7: =IF(AP$10,BH7,BF7) -> 0 | BK7: they also depend on the scaled/moved image.
AP8: 49 | AQ8: (0 to 250) | AR8: 100 | AS8: f2 | AT8: -70 | AU8: -50 | AV8: -60.2 | AZ8: hi1 | BA8: =-BA6*BA4/BA3 -> -0.0965028429 | BB8: hi2 | BC8: =BC7*BC6 -> -0.09275816273 | BD8: 10 | BE8: =IF(AND(SUM(BE5:BE7)=0,BD$3<=BD8),1,0) -> 0 | BF8: 0 | BG8: =IF(AND(SUM(BG5:BG7)=0,BG$3<=BD8),1,0) -> 0 | BH8: 0 | BI8: =IF(AP$10,BH8,BF8) -> 0
B9: Position Lens 1 | AP9: 172 | AQ9: (0 to 250) | AR9: 250 | AS9: xL2 | AT9: =3*AT5 -> 9 | AU9: =AU6 -> 111 | AV9: 79.176 | AW9: =IF(AV9<AW6+3,AW6+3,IF(AV9>AW7-8,AW7-8,AV9)) -> 63.856
AP10: FALSE | AQ10: is lens 2 there? | AS10: Distant? | AT10: TRUE | AU10: -999
B11: Position Lens 2 | AQ11: offset | AS11: Lens1 drawing Data | AU11: Lens 1final | AW11: Screen basic | AY11: screen final | BK11: plotted | BM11: plotted | BO11: plotted | BQ11: plotted
AQ12: =$AQ$16*COS(AR13*PI()/180) -> -12.59613655 | AR12: i | AS12: x1 | AT12: y | AU12: x | AV12: y | AW12: x | AX12: y | AY12: x | AZ12: y | BL12: black | BN12: medium gray | BP12: gray | BR12: light gray
B13: Position Screen | AQ13: index | AR13: =AQ20 -> -17.61764585 | AS13: =$AQ$16*COS(AR13*PI()/180)-$AQ$12 -> 0 | AT13: =$AQ$16*SIN(AR13*PI()/180) -> 4 | AU13: =AS13+$AW$6 -> 44.64 | AV13: =AT13 -> 4 | AW13: 0 | AX13: -5 | AY13: =AW13+$AW$7 -> 71.856 | AZ13: =AX13 -> -5 | BL13: sharp1 | BN13: sharp 2 | BP13: sharp3 | BR13: sharp4
AQ14: 1.4 | AR14: =AR13-$AQ$22 -> -14.09411668 | AS14: =$AQ$16*COS(AR14*PI()/180)-$AQ$12 -> -0.2220225369 | AT14: =$AQ$16*SIN(AR14*PI()/180) -> 3.218299801 | AU14: =AS14+$AW$6 -> 44.41797746 | AV14: 3.218299801 | AW14: 2.5 | AX14: =AX13 -> -5 | AY14: =AW14+$AW$7 -> 74.356 | AZ14: -5 | BA14: basic object | BC14: basic image | BE14: moved object | BG14: scaled image 1 | BI14: Net image for plot | BL14: moved image
B15: Which control? | C15: Better for Macs | F15: Better for PCs | AQ15: R | AR15: =AR14-$AQ$22 -> -10.57058751 | AS15: =$AQ$16*COS(AR15*PI()/180)-$AQ$12 -> -0.3955833053 | AT15: =$AQ$16*SIN(AR15*PI()/180) -> 2.424432137 | AU15: =AS15+$AW$6 -> 44.24441669 | AV15: 2.424432137 | AW15: =AW14 -> 2.5 | AX15: =-AX14 -> 5 | AY15: =AW15+$AW$7 -> 74.356 | AZ15: 5 | BA15: x | BB15: y | BC15: x | BD15: y | BE15: x | BF15: y | BG15: x | BH15: y | BI15: x | BJ15: y | BK15: x | BL15: y | BM15: x | BN15: y | BO15: x | BP15: y | BQ15: x | BR15: y
AQ16: =AV4*2*(1-AQ14) -> -13.216 | AR16: =AR15-$AQ$22 -> -7.047058338 | AS16: =$AQ$16*COS(AR16*PI()/180)-$AQ$12 -> -0.5200261219 | AT16: =$AQ$16*SIN(AR16*PI()/180) -> 1.621398393 | AU16: =AS16+$AW$6 -> 44.11997388 | AV16: 1.621398393 | AW16: =-AW14 -> -2.5 | AX16: =AX15 -> 5 | AY16: =AW16+$AW$7 -> 69.356 | AZ16: 5 | BA16: 0 | BB16: 0 | BC16: =-BA16 -> 0 | BD16: =-BB16 -> 0 | BE16: =BA16+$AW$5 -> -999 | BF16: =BB16 -> 0 | BG16: =BC16*$BA$7 -> 0 | BH16: =BD16*$BA$7 -> 0 | BI16: =IF($AP$10,BG30,BG16) -> 0 | BJ16: =IF($AP$10,BH30,BH16) -> 0 | BK16: =$BI16*$BI$5+$AW$7 -> 71.856 | BL16: =BJ16*$BI$5 -> 0 | BM16: =$BI16*$BI$6+$AW$7 -> 71.856 | BN16: =BJ16*$BI$6 -> 0 | BO16: =$BI16*$BI$7+$AW$7 -> 71.856 | BP16: =BJ16*$BI$7 -> 0 | BQ16: =$BI16*$BI$8+$AW$7 -> 71.856 | BR16: =BJ16*$BI$8 -> 0
AQ17: table y | AR17: =AR16-$AQ$22 -> -3.523529169 | AS17: =$AQ$16*COS(AR17*PI()/180)-$AQ$12 -> -0.5948805042 | AT17: =$AQ$16*SIN(AR17*PI()/180) -> 0.8122346093 | AU17: =AS17+$AW$6 -> 44.0451195 | AV17: 0.8122346093 | AW17: =AW16 -> -2.5 | AX17: =AX13 -> -5 | AY17: =AW17+$AW$7 -> 69.356 | AZ17: -5 | BA17: 0 | BB17: -3 | BC17: =-BA17 -> 0 | BD17: =-BB17 -> 3 | BE17: =BA17+$AW$5 -> -999 | BF17: =BB17 -> -3 | BG17: =BC17*$BA$7 -> 0 | BH17: =BD17*$BA$7 -> 0.04825142145 | BI17: =IF($AP$10,BG31,BG17) -> 0 | BJ17: =IF($AP$10,BH31,BH17) -> 0.04825142145 | BK17: =$BI17*$BI$5+$AW$7 -> 71.856 | BL17: =BJ17*$BI$5 -> 0 | BM17: =$BI17*$BI$6+$AW$7 -> 71.856 | BN17: =BJ17*$BI$6 -> 0 | BO17: =$BI17*$BI$7+$AW$7 -> 71.856 | BP17: =BJ17*$BI$7 -> 0 | BQ17: =$BI17*$BI$8+$AW$7 -> 71.856 | BR17: =BJ17*$BI$8 -> 0
AQ18: =-6 -> -6 | AR18: =AR17-$AQ$22 -> 0 | AS18: =$AQ$16*COS(AR18*PI()/180)-$AQ$12 -> -0.6198634495 | AT18: =$AQ$16*SIN(AR18*PI()/180) -> 0 | AU18: =AS18+$AW$6 -> 44.02013655 | AV18: 0 | AW18: =AW13 -> 0 | AX18: =AX13 -> -5 | AY18: =AW18+$AW$7 -> 71.856 | AZ18: -5 | BA18: 0 | BB18: 3 | BC18: =-BA18 -> 0 | BD18: =-BB18 -> -3 | BE18: =BA18+$AW$5 -> -999 | BF18: =BB18 -> 3 | BG18: =BC18*$BA$7 -> 0 | BH18: =BD18*$BA$7 -> -0.04825142145 | BI18: =IF($AP$10,BG32,BG18) -> 0 | BJ18: =IF($AP$10,BH32,BH18) -> -0.04825142145 | BK18: =$BI18*$BI$5+$AW$7 -> 71.856 | BL18: =BJ18*$BI$5 -> 0 | BM18: =$BI18*$BI$6+$AW$7 -> 71.856 | BN18: =BJ18*$BI$6 -> 0 | BO18: =$BI18*$BI$7+$AW$7 -> 71.856 | BP18: =BJ18*$BI$7 -> 0 | BQ18: =$BI18*$BI$8+$AW$7 -> 71.856 | BR18: =BJ18*$BI$8 -> 0
AQ19: qmax | AR19: =AR18-$AQ$22 -> 3.523529169 | AS19: =$AQ$16*COS(AR19*PI()/180)-$AQ$12 -> -0.5948805042 | AT19: =$AQ$16*SIN(AR19*PI()/180) -> -0.8122346093 | AU19: =AS19+$AW$6 -> 44.0451195 | AV19: -0.8122346093 | AX19: Ellipse | AY19: ax | AZ19: 2 | BA19: -0.5 | BB19: 2 | BC19: 0.5 | BD19: -2 | BE19: =BA19+$AW$5 -> -999.5 | BF19: 2 | BG19: =BC19*$BA$7 -> 0.008041903575 | BH19: =BD19*$BA$7 -> -0.0321676143 | BI19: =IF($AP$10,BG33,BG19) -> 0.008041903575 | BJ19: =IF($AP$10,BH33,BH19) -> -0.0321676143 | BK19: =$BI19*$BI$5+$AW$7 -> 71.856 | BL19: =BJ19*$BI$5 -> 0 | BM19: =$BI19*$BI$6+$AW$7 -> 71.856 | BN19: =BJ19*$BI$6 -> 0 | BO19: =$BI19*$BI$7+$AW$7 -> 71.856 | BP19: =BJ19*$BI$7 -> 0 | BQ19: =$BI19*$BI$8+$AW$7 -> 71.856 | BR19: =BJ19*$BI$8 -> 0
AQ20: =ASIN(4/AQ16)*180/PI() -> -17.61764585 | AR20: =AR19-$AQ$22 -> 7.047058338 | AS20: =$AQ$16*COS(AR20*PI()/180)-$AQ$12 -> -0.5200261219 | AT20: =$AQ$16*SIN(AR20*PI()/180) -> -1.621398393 | AU20: =AS20+$AW$6 -> 44.11997388 | AV20: -1.621398393 | AX20: Table | AY20: by | AZ20: =0.5*BA6+0.5 -> 3.5 | BA20: 0 | BB20: 3 | BC20: 0 | BD20: -3 | BE20: =BA20+$AW$5 -> -999 | BF20: 3 | BG20: =BC20*$BA$7 -> 0 | BH20: =BD20*$BA$7 -> -0.04825142145 | BI20: =IF($AP$10,BG34,BG20) -> 0 | BJ20: =IF($AP$10,BH34,BH20) -> -0.04825142145 | BK20: =$BI20*$BI$5+$AW$7 -> 71.856 | BL20: =BJ20*$BI$5 -> 0 | BM20: =$BI20*$BI$6+$AW$7 -> 71.856 | BN20: =BJ20*$BI$6 -> 0 | BO20: =$BI20*$BI$7+$AW$7 -> 71.856 | BP20: =BJ20*$BI$7 -> 0 | BQ20: =$BI20*$BI$8+$AW$7 -> 71.856 | BR20: =BJ20*$BI$8 -> 0
AQ21: dq | AR21: =AR20-$AQ$22 -> 10.57058751 | AS21: =$AQ$16*COS(AR21*PI()/180)-$AQ$12 -> -0.3955833053 | AT21: =$AQ$16*SIN(AR21*PI()/180) -> -2.424432137 | AU21: =AS21+$AW$6 -> 44.24441669 | AV21: -2.424432137 | AX21: x | AY21: y | BA21: 0.5 | BB21: 2 | BC21: -0.5 | BD21: -2 | BE21: =BA21+$AW$5 -> -998.5 | BF21: 2 | BG21: =BC21*$BA$7 -> -0.008041903575 | BH21: =BD21*$BA$7 -> -0.0321676143 | BI21: =IF($AP$10,BG35,BG21) -> -0.008041903575 | BJ21: =IF($AP$10,BH35,BH21) -> -0.0321676143 | BK21: =$BI21*$BI$5+$AW$7 -> 71.856 | BL21: =BJ21*$BI$5 -> 0 | BM21: =$BI21*$BI$6+$AW$7 -> 71.856 | BN21: =BJ21*$BI$6 -> 0 | BO21: =$BI21*$BI$7+$AW$7 -> 71.856 | BP21: =BJ21*$BI$7 -> 0 | BQ21: =$BI21*$BI$8+$AW$7 -> 71.856 | BR21: =BJ21*$BI$8 -> 0
AQ22: =AQ20/5 -> -3.523529169 | AR22: =AR21-$AQ$22 -> 14.09411668 | AS22: =$AQ$16*COS(AR22*PI()/180)-$AQ$12 -> -0.2220225369 | AT22: =$AQ$16*SIN(AR22*PI()/180) -> -3.218299801 | AU22: =AS22+$AW$6 -> 44.41797746 | AV22: -3.218299801 | AX22: =AT3+1 -> 1 | AY22: =AQ18 -> -6 | BA22: 0 | BB22: 3 | BC22: 0 | BD22: -3 | BE22: =BA22+$AW$5 -> -999 | BF22: 3 | BG22: =BC22*$BA$7 -> 0 | BH22: =BD22*$BA$7 -> -0.04825142145 | BI22: =IF($AP$10,BG36,BG22) -> 0 | BJ22: =IF($AP$10,BH36,BH22) -> -0.04825142145 | BK22: =$BI22*$BI$5+$AW$7 -> 71.856 | BL22: =BJ22*$BI$5 -> 0 | BM22: =$BI22*$BI$6+$AW$7 -> 71.856 | BN22: =BJ22*$BI$6 -> 0 | BO22: =$BI22*$BI$7+$AW$7 -> 71.856 | BP22: =BJ22*$BI$7 -> 0 | BQ22: =$BI22*$BI$8+$AW$7 -> 71.856 | BR22: =BJ22*$BI$8 -> 0
AR23: =AR22-$AQ$22 -> 17.61764585 | AS23: =$AQ$16*COS(AR23*PI()/180)-$AQ$12 -> 0 | AT23: =$AQ$16*SIN(AR23*PI()/180) -> -4 | AU23: =AS23+$AW$6 -> 44.64 | AV23: -4 | AX23: =AX22 -> 1 | AY23: =AY22-2 -> -8 | BA23: 0 | BB23: 0 | BC23: 0 | BD23: 0 | BE23: =BA23+$AW$5 -> -999 | BF23: 0 | BG23: =BC23*$BA$7 -> 0 | BH23: =BD23*$BA$7 -> 0 | BI23: =IF($AP$10,BG37,BG23) -> 0 | BJ23: =IF($AP$10,BH37,BH23) -> 0 | BK23: =$BI23*$BI$5+$AW$7 -> 71.856 | BL23: =BJ23*$BI$5 -> 0 | BM23: =$BI23*$BI$6+$AW$7 -> 71.856 | BN23: =BJ23*$BI$6 -> 0 | BO23: =$BI23*$BI$7+$AW$7 -> 71.856 | BP23: =BJ23*$BI$7 -> 0 | BQ23: =$BI23*$BI$8+$AW$7 -> 71.856 | BR23: =BJ23*$BI$8 -> 0
AS24: =-AS13 -> 0 | AT24: -4 | AU24: =AS24+$AW$6 -> 44.64 | AV24: =AT24 -> -4 | AX24: =AU3-1 -> 119 | AY24: =AY23 -> -8 | BA24: -1 | BB24: 0 | BC24: 1 | BD24: 0 | BE24: =BA24+$AW$5 -> -1000 | BF24: 0 | BG24: =BC24*$BA$7 -> 0.01608380715 | BH24: =BD24*$BA$7 -> 0 | BI24: =IF($AP$10,BG38,BG24) -> 0.01608380715 | BJ24: =IF($AP$10,BH38,BH24) -> 0 | BK24: =$BI24*$BI$5+$AW$7 -> 71.856 | BL24: =BJ24*$BI$5 -> 0 | BM24: =$BI24*$BI$6+$AW$7 -> 71.856 | BN24: =BJ24*$BI$6 -> 0 | BO24: =$BI24*$BI$7+$AW$7 -> 71.856 | BP24: =BJ24*$BI$7 -> 0 | BQ24: =$BI24*$BI$8+$AW$7 -> 71.856 | BR24: =BJ24*$BI$8 -> 0
AS25: 0.2220225369 | AT25: -3.218299801 | AU25: =AS25+$AW$6 -> 44.86202254 | AV25: -3.218299801 | AX25: =AX24 -> 119 | AY25: =AY22 -> -6 | BA25: 1 | BB25: 0 | BC25: -1 | BD25: 0 | BE25: =BA25+$AW$5 -> -998 | BF25: 0 | BG25: =BC25*$BA$7 -> -0.01608380715 | BH25: =BD25*$BA$7 -> 0 | BI25: =IF($AP$10,BG39,BG25) -> -0.01608380715 | BJ25: =IF($AP$10,BH39,BH25) -> 0 | BK25: =$BI25*$BI$5+$AW$7 -> 71.856 | BL25: =BJ25*$BI$5 -> 0 | BM25: =$BI25*$BI$6+$AW$7 -> 71.856 | BN25: =BJ25*$BI$6 -> 0 | BO25: =$BI25*$BI$7+$AW$7 -> 71.856 | BP25: =BJ25*$BI$7 -> 0 | BQ25: =$BI25*$BI$8+$AW$7 -> 71.856 | BR25: =BJ25*$BI$8 -> 0
AS26: 0.3955833053 | AT26: -2.424432137 | AU26: =AS26+$AW$6 -> 45.03558331 | AV26: -2.424432137 | AX26: =AY13 -> 71.856 | AY26: -6 | BA26: 1 | BB26: 0.5 | BC26: -1 | BD26: -0.5 | BE26: =BA26+$AW$5 -> -998 | BF26: 0.5 | BG26: =BC26*$BA$7 -> -0.01608380715 | BH26: =BD26*$BA$7 -> -0.008041903575 | BI26: =IF($AP$10,BG40,BG26) -> -0.01608380715 | BJ26: =IF($AP$10,BH40,BH26) -> -0.008041903575 | BK26: =$BI26*$BI$5+$AW$7 -> 71.856 | BL26: =BJ26*$BI$5 -> 0 | BM26: =$BI26*$BI$6+$AW$7 -> 71.856 | BN26: =BJ26*$BI$6 -> 0 | BO26: =$BI26*$BI$7+$AW$7 -> 71.856 | BP26: =BJ26*$BI$7 -> 0 | BQ26: =$BI26*$BI$8+$AW$7 -> 71.856 | BR26: =BJ26*$BI$8 -> 0
AS27: 0.5200261219 | AT27: -1.621398393 | AU27: =AS27+$AW$6 -> 45.16002612 | AV27: -1.621398393 | AX27: =AX26 -> 71.856 | AY27: =AZ13 -> -5 | BA27: 1 | BB27: -0.5 | BC27: -1 | BD27: 0.5 | BE27: =BA27+$AW$5 -> -998 | BF27: -0.5 | BG27: =BC27*$BA$7 -> -0.01608380715 | BH27: =BD27*$BA$7 -> 0.008041903575 | BI27: =IF($AP$10,BG41,BG27) -> -0.01608380715 | BJ27: =IF($AP$10,BH41,BH27) -> 0.008041903575 | BK27: =$BI27*$BI$5+$AW$7 -> 71.856 | BL27: =BJ27*$BI$5 -> 0 | BM27: =$BI27*$BI$6+$AW$7 -> 71.856 | BN27: =BJ27*$BI$6 -> 0 | BO27: =$BI27*$BI$7+$AW$7 -> 71.856 | BP27: =BJ27*$BI$7 -> 0 | BQ27: =$BI27*$BI$8+$AW$7 -> 71.856 | BR27: =BJ27*$BI$8 -> 0
AS28: 0.5948805042 | AT28: -0.8122346093 | AU28: =AS28+$AW$6 -> 45.2348805 | AV28: -0.8122346093 | AX28: =AX27 -> 71.856 | AY28: -6 | BG28: scaled image 2
AS29: 0.6198634495 | AT29: 0 | AU29: =AS29+$AW$6 -> 45.25986345 | AV29: 0 | AX29: =AW9 -> 63.856 | AY29: -6 | BG29: x | BH29: y
AS30: 0.5948805042 | AT30: 0.8122346093 | AU30: =AS30+$AW$6 -> 45.2348805 | AV30: 0.8122346093 | AX30: =AX29 -> 63.856 | AY30: -4 | BG30: =BG16*$BC$7 -> 0 | BH30: =BH16*$BC$7 -> 0
AS31: 0.5200261219 | AT31: 1.621398393 | AU31: =AS31+$AW$6 -> 45.16002612 | AV31: 1.621398393 | AX31: =AX30 -> 63.856 | AY31: -6 | BG31: =BG17*$BC$7 -> 0 | BH31: =BH17*$BC$7 -> 0.04637908137
AS32: 0.3955833053 | AT32: 2.424432137 | AU32: =AS32+$AW$6 -> 45.03558331 | AV32: 2.424432137 | AW32: i | AX32: =AU13 -> 44.64 | AY32: =AY28 -> -6 | BG32: =BG18*$BC$7 -> 0 | BH32: =BH18*$BC$7 -> -0.04637908137
AS33: 0.2220225369 | AT33: 3.218299801 | AU33: =AS33+$AW$6 -> 44.86202254 | AV33: 3.218299801 | AW33: -90 | AX33: =AX32 -> 44.64 | AY33: =AV24 -> -4 | BG33: =BG19*$BC$7 -> 0.007729846894 | BH33: =BH19*$BC$7 -> -0.03091938758
AS34: 0 | AT34: 4 | AU34: =AS34+$AW$6 -> 44.64 | AV34: 4 | AW34: -60 | AX34: =AX33 -> 44.64 | AY34: =AY32 -> -6 | BG34: =BG20*$BC$7 -> 0 | BH34: =BH20*$BC$7 -> -0.04637908137
AS35: Lens2 drawing data | AU35: Lens 2 final | AW35: -30 | AX35: =AW5 -> -999 | AY35: =AY34 -> -6 | BG35: =BG21*$BC$7 -> -0.007729846894 | BH35: =BH21*$BC$7 -> -0.03091938758
AS36: x2 | AT36: y | AU36: x | AV36: y | AW36: 0 | AX36: =$AX$35+$AZ$19*COS($AW33*PI()/180) -> -999 | AY36: =$AZ$20*SIN($AW33*PI()/180) -> -3.5 | BG36: =BG22*$BC$7 -> 0 | BH36: =BH22*$BC$7 -> -0.04637908137
AS37: =0.5*AS13+MAX($AS$13:$AS$34) -> 0.6198634495 | AT37: =AT13 -> 4 | AU37: =AS37+$AW$9 -> 64.47586345 | AV37: =IF(AP$10,AT37,20) -> 20 | AW37: 30 | AX37: =$AX$35+$AZ$19*COS($AW34*PI()/180) -> -998 | AY37: =$AZ$20*SIN($AW34*PI()/180) -> -3.031088913 | BG37: =BG23*$BC$7 -> 0 | BH37: =BH23*$BC$7 -> 0
AS38: =0.5*AS14+MAX($AS$13:$AS$34) -> 0.508852181 | AT38: =AT14 -> 3.218299801 | AU38: =AS38+$AW$9 -> 64.36485218 | AV38: =IF(AP$10,AT38,20) -> 20 | AW38: 60 | AX38: =$AX$35+$AZ$19*COS($AW35*PI()/180) -> -997.2679492 | AY38: =$AZ$20*SIN($AW35*PI()/180) -> -1.75 | BG38: =BG24*$BC$7 -> 0.01545969379 | BH38: =BH24*$BC$7 -> 0
AS39: =0.5*AS15+MAX($AS$13:$AS$34) -> 0.4220717968 | AT39: 2.424432137 | AU39: =AS39+$AW$9 -> 64.2780718 | AV39: =IF(AP$10,AT39,20) -> 20 | AW39: 90 | AX39: =$AX$35+$AZ$19*COS($AW36*PI()/180) -> -997 | AY39: =$AZ$20*SIN($AW36*PI()/180) -> 0 | BG39: =BG25*$BC$7 -> -0.01545969379 | BH39: =BH25*$BC$7 -> 0
AS40: =0.5*AS16+MAX($AS$13:$AS$34) -> 0.3598503885 | AT40: 1.621398393 | AU40: =AS40+$AW$9 -> 64.21585039 | AV40: =IF(AP$10,AT40,20) -> 20 | AW40: 120 | AX40: =$AX$35+$AZ$19*COS($AW37*PI()/180) -> -997.2679492 | AY40: =$AZ$20*SIN($AW37*PI()/180) -> 1.75 | BG40: =BG26*$BC$7 -> -0.01545969379 | BH40: =BH26*$BC$7 -> -0.007729846894
AS41: =0.5*AS17+MAX($AS$13:$AS$34) -> 0.3224231973 | AT41: 0.8122346093 | AU41: =AS41+$AW$9 -> 64.1784232 | AV41: =IF(AP$10,AT41,20) -> 20 | AW41: 150 | AX41: =$AX$35+$AZ$19*COS($AW38*PI()/180) -> -998 | AY41: =$AZ$20*SIN($AW38*PI()/180) -> 3.031088913 | BG41: =BG27*$BC$7 -> -0.01545969379 | BH41: =BH27*$BC$7 -> 0.007729846894
AS42: =0.5*AS18+MAX($AS$13:$AS$34) -> 0.3099317247 | AT42: 0 | AU42: =AS42+$AW$9 -> 64.16593172 | AV42: =IF(AP$10,AT42,20) -> 20 | AW42: 180 | AX42: =$AX$35+$AZ$19*COS($AW39*PI()/180) -> -999 | AY42: =$AZ$20*SIN($AW39*PI()/180) -> 3.5
AS43: =0.5*AS19+MAX($AS$13:$AS$34) -> 0.3224231973 | AT43: -0.8122346093 | AU43: =AS43+$AW$9 -> 64.1784232 | AV43: =IF(AP$10,AT43,20) -> 20 | AW43: 210 | AX43: =$AX$35+$AZ$19*COS($AW40*PI()/180) -> -1000 | AY43: =$AZ$20*SIN($AW40*PI()/180) -> 3.031088913
AS44: =0.5*AS20+MAX($AS$13:$AS$34) -> 0.3598503885 | AT44: -1.621398393 | AU44: =AS44+$AW$9 -> 64.21585039 | AV44: =IF(AP$10,AT44,20) -> 20 | AW44: 240 | AX44: =$AX$35+$AZ$19*COS($AW41*PI()/180) -> -1000.732051 | AY44: =$AZ$20*SIN($AW41*PI()/180) -> 1.75
AS45: =0.5*AS21+MAX($AS$13:$AS$34) -> 0.4220717968 | AT45: -2.424432137 | AU45: =AS45+$AW$9 -> 64.2780718 | AV45: =IF(AP$10,AT45,20) -> 20 | AW45: 270 | AX45: =$AX$35+$AZ$19*COS($AW42*PI()/180) -> -1001 | AY45: =$AZ$20*SIN($AW42*PI()/180) -> 4.288019592e-16
AS46: =0.5*AS22+MAX($AS$13:$AS$34) -> 0.508852181 | AT46: -3.218299801 | AU46: =AS46+$AW$9 -> 64.36485218 | AV46: =IF(AP$10,AT46,20) -> 20 | AX46: =$AX$35+$AZ$19*COS($AW43*PI()/180) -> -1000.732051 | AY46: =$AZ$20*SIN($AW43*PI()/180) -> -1.75
AS47: =0.5*AS23+MAX($AS$13:$AS$34) -> 0.6198634495 | AT47: -4 | AU47: =AS47+$AW$9 -> 64.47586345 | AV47: =IF(AP$10,AT47,20) -> 20 | AX47: =$AX$35+$AZ$19*COS($AW44*PI()/180) -> -1000 | AY47: =$AZ$20*SIN($AW44*PI()/180) -> -3.031088913
AS48: =0.5*AS24-MAX($AS$13:$AS$34) -> -0.6198634495 | AT48: -4 | AU48: =AS48+$AW$9 -> 63.23613655 | AV48: =IF(AP$10,AT48,20) -> 20 | AX48: =$AX$35+$AZ$19*COS($AW45*PI()/180) -> -999 | AY48: =$AZ$20*SIN($AW45*PI()/180) -> -3.5
AS49: =0.5*AS25-MAX($AS$13:$AS$34) -> -0.508852181 | AT49: -3.218299801 | AU49: =AS49+$AW$9 -> 63.34714782 | AV49: =IF(AP$10,AT49,20) -> 20 | AX49: =AX35 -> -999 | AY49: =AY35 -> -6
AS50: =0.5*AS26-MAX($AS$13:$AS$34) -> -0.4220717968 | AT50: -2.424432137 | AU50: =AS50+$AW$9 -> 63.4339282 | AV50: =IF(AP$10,AT50,20) -> 20 | AX50: =AX22 -> 1 | AY50: =AY22 -> -6
AS51: =0.5*AS27-MAX($AS$13:$AS$34) -> -0.3598503885 | AT51: -1.621398393 | AU51: =AS51+$AW$9 -> 63.49614961 | AV51: =IF(AP$10,AT51,20) -> 20
AS52: =0.5*AS28-MAX($AS$13:$AS$34) -> -0.3224231973 | AT52: -0.8122346093 | AU52: =AS52+$AW$9 -> 63.5335768 | AV52: =IF(AP$10,AT52,20) -> 20
AS53: =0.5*AS29-MAX($AS$13:$AS$34) -> -0.3099317247 | AT53: 0 | AU53: =AS53+$AW$9 -> 63.54606828 | AV53: =IF(AP$10,AT53,20) -> 20
AS54: =0.5*AS30-MAX($AS$13:$AS$34) -> -0.3224231973 | AT54: 0.8122346093 | AU54: =AS54+$AW$9 -> 63.5335768 | AV54: =IF(AP$10,AT54,20) -> 20
AS55: =0.5*AS31-MAX($AS$13:$AS$34) -> -0.3598503885 | AT55: 1.621398393 | AU55: =AS55+$AW$9 -> 63.49614961 | AV55: =IF(AP$10,AT55,20) -> 20
AS56: =0.5*AS32-MAX($AS$13:$AS$34) -> -0.4220717968 | AT56: 2.424432137 | AU56: =AS56+$AW$9 -> 63.4339282 | AV56: =IF(AP$10,AT56,20) -> 20
AS57: =0.5*AS33-MAX($AS$13:$AS$34) -> -0.508852181 | AT57: 3.218299801 | AU57: =AS57+$AW$9 -> 63.34714782 | AV57: =IF(AP$10,AT57,20) -> 20
AS58: =0.5*AS34-MAX($AS$13:$AS$34) -> -0.6198634495 | AT58: 4 | AU58: =AS58+$AW$9 -> 63.23613655 | AV58: =IF(AP$10,AT58,20) -> 20
AS59: =AS37 -> 0.6198634495 | AT59: =AT37 -> 4 | AU59: =AS59+$AW$9 -> 64.47586345 | AV59: =IF(AP$10,AT59,20) -> 20
